fUSD/lending_fUSD_20260217
["ID","MTS","AMOUNT","RATE_DAILY","PERIOD"]
[405821953,1771339842745,-1000.0,0.00011327,2]
[405821954,1771339842755,-162.38741444,0.00011327,2]
[405821955,1771339842764,-1000.0,0.00011327,2]
[405821956,1771339842773,-1000.0,0.00011327,2]
[405821957,1771339842783,-1143.72920629,0.00011327,2]
[405821958,1771339842792,-910.04055558,0.00011327,2]
[405821959,1771339842808,-1000.0,0.00011327,2]
[405821960,1771339842817,-1000.0,0.00011327,2]
[405821961,1771339842829,-166.66,0.00011397,2]
[405821964,1771339842839,-382.0,0.00011424,2]
[405821968,1771339842849,-166.66,0.00011507,2]
[405821970,1771339842860,-500.0,0.00011507,2]
[405821972,1771339842871,-6700.00257211,0.0001158,2]
[405821974,1771339842880,-500.0,0.00011781,2]
[405821976,1771339842890,-500.97291215,0.00011875,2]
[405821978,1771339842899,-1500.0,0.00011875,2]
[405821981,1771339842910,-500.99582071,0.00011875,2]
[405821984,1771339842920,-1500.0,0.00011875,2]
[405821986,1771339842929,-1500.0,0.00011875,2]
[405821988,1771339842939,-1500.0,0.00011875,2]
[405821990,1771339842948,-432.93855102,0.00011875,2]
[405821992,1771339842957,-502.71949542,0.00011875,2]
[405821995,1771339842967,-1500.0,0.00011875,2]
[405821997,1771339842977,-30336.8,0.00012055,2]
[405821999,1771339842986,-500.0,0.00012055,2]
[405822001,1771339842995,-313.19,0.0001215,2]
[405822003,1771339843004,-217.0,0.00012151,3]
[405822005,1771339843015,-500.0,0.0001222,2]
[405822007,1771339843023,-500.0,0.0001222,2]
[405822009,1771339843032,-500.0,0.0001222,2]
[405822011,1771339843041,-9035.0,0.00012275,2]
[405822013,1771339843055,-248.0,0.00012275,2]
[405822016,1771339843065,-500.0,0.00012329,2]
[405822017,1771339843074,-875.94052203,0.0001237,2]
[405822018,1771339843084,-336.2005368,0.0001237,2]
[405822019,1771339843093,-1175.15043052,0.00012423,2]
[405822020,1771339843103,-2000.0,0.00012423,2]
[405822021,1771339843113,-2000.0,0.00012423,2]
[405822022,1771339843122,-2000.0,0.00012423,2]
[405822023,1771339843133,-631.3214811,0.00012423,2]
[405822024,1771339843143,-1000.0,0.00012469,2]
[405822025,1771339843153,-170838.0,0.000126,2]
[405822026,1771339843163,-500.0,0.00012603,2]
[405822027,1771339843172,-500.0,0.00012877,2]
[405822028,1771339843182,-195.74,0.00012882,2]
[405822029,1771339843191,-1299.80965345,0.00012971,2]
[405822030,1771339843201,-2500.0,0.00012971,2]
[405822031,1771339843211,-1502.39964348,0.00012971,2]
[405822032,1771339843221,-791.09059454,0.00013,2]
[405822033,1771339843231,-5530.0,0.000131,3]
[405822034,1771339843241,-500.0,0.00013151,2]
[405822035,1771339843251,-6700.00257211,0.0001316,2]
[405822036,1771339843261,-3240.0,0.00013425,2]
[405822037,1771339843270,-5530.0,0.000135,5]
[405822038,1771339843279,-215.539272,0.00013501,2]
[405822039,1771339843289,-12649.0,0.00013502,2]
[405822040,1771339843302,-3000.0,0.00013519,2]
[405822041,1771339843312,-157.37,0.00013667,2]
[405822042,1771339843321,-6420.590205,0.00013668,2]
[405822043,1771339843331,-43882.621792,0.0001369,2]
[405822044,1771339843341,-286.9609652,0.00013698,2]
[405822045,1771339843350,-500.0,0.00013698,2]
[405822046,1771339843359,-536.56841648,0.00013698,2]
[405822047,1771339843369,-500.0,0.00013698,2]
[405822048,1771339843378,-500.0,0.00013698,2]
[405822049,1771339843387,-500.0,0.00013698,2]
[405822050,1771339843397,-500.0,0.00013698,2]
[405822051,1771339843406,-500.0,0.00013698,2]
[405822052,1771339843415,-500.0,0.00013698,2]
[405822053,1771339843424,-500.0,0.00013698,2]
[405822054,1771339843436,-500.0,0.00013698,2]
[405822055,1771339843445,-500.0,0.00013698,2]
[405822056,1771339843455,-500.0,0.00013698,2]
[405822057,1771339843464,-500.0,0.00013698,2]
[405822058,1771339843474,-500.0,0.00013698,2]
[405822059,1771339843483,-500.0,0.00013698,2]
[405822060,1771339843492,-500.0,0.00013698,2]
[405822062,1771339843502,-500.0,0.00013698,2]
[405822064,1771339843511,-500.0,0.00013698,2]
[405822066,1771339843521,-161.76553767,0.00013698,2]
[405822067,1771339843530,-500.0,0.00013698,2]
[405822068,1771339843540,-500.0,0.00013698,2]
[405822069,1771339843554,-500.0,0.00013698,2]
[405822070,1771339843563,-500.0,0.00013698,2]
[405822071,1771339843572,-500.0,0.00013698,2]
[405822072,1771339843582,-500.0,0.00013698,2]
[405822073,1771339843591,-500.0,0.00013698,2]
[405822074,1771339843601,-277.8358357,0.00013698,2]
[405822075,1771339843610,-500.0,0.00013698,2]
[405822076,1771339843620,-500.0,0.00013698,2]
[405822077,1771339843629,-500.0,0.00013698,2]
[405822078,1771339843639,-500.0,0.00013698,2]
[405822079,1771339843648,-500.0,0.00013698,2]
[405822080,1771339843657,-500.0,0.00013698,2]
[405822081,1771339843667,-500.0,0.00013698,2]
[405822082,1771339843675,-500.0,0.00013698,2]
[405822083,1771339843685,-500.0,0.00013698,2]
[405822084,1771339843694,-500.0,0.00013698,2]
[405822085,1771339843703,-500.0,0.00013698,2]
[405822086,1771339843713,-500.0,0.00013698,2]
[405822087,1771339843722,-500.0,0.00013698,2]
[405822088,1771339843731,-500.0,0.00013698,2]
[405822089,1771339843740,-156.33002301,0.00013698,2]
[405822090,1771339843749,-500.0,0.00013698,2]
[405822091,1771339843759,-500.0,0.00013698,2]
[405822092,1771339843768,-500.0,0.00013698,2]
[405822093,1771339843778,-500.0,0.00013698,2]
[405822094,1771339843788,-500.0,0.00013698,2]
[405822095,1771339843799,-500.0,0.00013698,2]
[405822096,1771339843810,-500.0,0.00013698,2]
[405822097,1771339843820,-500.0,0.00013698,2]
[405822098,1771339843839,-500.0,0.00013698,2]
[405822099,1771339843849,-500.0,0.00013698,2]
[405822100,1771339843858,-500.0,0.00013698,2]
[405822101,1771339843871,-500.0,0.00013698,2]
[405822102,1771339843882,-500.0,0.00013698,2]
[405822103,1771339843891,-500.0,0.00013698,2]
[405822104,1771339843900,-500.0,0.00013698,2]
[405822106,1771339843910,-500.0,0.00013698,2]
[405822107,1771339843919,-188.46,0.00013698,2]
[405822109,1771339843928,-500.0,0.00013698,2]
[405822110,1771339843938,-500.0,0.00013698,2]
[405822111,1771339843947,-500.0,0.00013698,2]
[405822112,1771339843955,-500.0,0.00013698,2]
[405822113,1771339843965,-500.0,0.00013698,2]
[405822114,1771339843975,-198.32029041,0.00013698,2]
[405822115,1771339843985,-763.46,0.00013698,2]
[405822116,1771339843995,-763.46,0.00013698,2]
[405822117,1771339844004,-763.46,0.00013698,2]
[405822118,1771339844014,-763.46,0.00013698,2]
[405822119,1771339844024,-763.46,0.00013698,2]
[405822120,1771339844034,-763.46,0.00013698,2]
[405822121,1771339844043,-763.46,0.00013698,2]
[405822122,1771339844058,-763.46,0.00013698,2]
[405822123,1771339844067,-763.46,0.00013698,2]
[405822124,1771339844077,-763.46,0.00013698,2]
[405822125,1771339844087,-763.46,0.00013698,2]
[405822126,1771339844096,-763.46,0.00013698,2]
[405822127,1771339844106,-763.46,0.00013698,2]
[405822128,1771339844115,-763.46,0.00013698,2]
[405822129,1771339844125,-763.46,0.00013698,2]
[405822130,1771339844134,-763.46,0.00013698,2]
[405822131,1771339844144,-763.46,0.00013698,2]
[405822132,1771339844154,-763.46,0.00013698,2]
[405822133,1771339844163,-763.46,0.00013698,2]
[405822134,1771339844173,-763.46,0.00013698,2]
[405822135,1771339844183,-763.46,0.00013698,2]
[405822136,1771339844193,-763.46,0.00013698,2]
[405822137,1771339844202,-763.46,0.00013698,2]
[405822138,1771339844211,-763.6674779,0.00013698,2]
[405822139,1771339844221,-500.0,0.00013698,2]
[405822140,1771339844230,-500.0,0.00013698,2]
[405822141,1771339844239,-500.0,0.00013698,2]
[405822142,1771339844249,-500.0,0.00013698,2]
[405822143,1771339844258,-500.0,0.00013698,2]
[405822144,1771339844267,-500.0,0.00013698,2]
[405822145,1771339844277,-500.0,0.00013698,2]
[405822146,1771339844286,-500.0,0.00013698,2]
[405822147,1771339844296,-500.0,0.00013698,2]
[405822148,1771339844308,-500.0,0.00013698,2]
[405822149,1771339844318,-500.0,0.00013698,2]
[405822150,1771339844327,-500.0,0.00013698,2]
[405822151,1771339844337,-500.0,0.00013698,2]
[405822152,1771339844347,-500.0,0.00013698,2]
[405822153,1771339844357,-500.0,0.00013698,2]
[405822154,1771339844366,-508.20125622,0.00013698,2]
[405822155,1771339844376,-500.0,0.00013698,2]
[405822156,1771339844385,-500.0,0.00013698,2]
[405822157,1771339844395,-500.0,0.00013698,2]
[405822158,1771339844405,-500.0,0.00013698,2]
[405822159,1771339844414,-500.0,0.00013698,2]
[405822160,1771339844423,-500.0,0.00013698,2]
[405822161,1771339844433,-500.0,0.00013698,2]
[405822162,1771339844442,-500.0,0.00013698,2]
[405822163,1771339844452,-500.0,0.00013698,2]
[405822164,1771339844461,-500.0,0.00013698,2]
[405822165,1771339844471,-500.0,0.00013698,2]
[405822166,1771339844480,-500.0,0.00013698,2]
[405822167,1771339844489,-500.0,0.00013698,2]
[405822168,1771339844499,-500.0,0.00013698,2]
[405822169,1771339844508,-197.6651859,0.00013698,2]
[405822170,1771339844517,-500.0,0.00013698,2]
[405822171,1771339844527,-500.0,0.00013698,2]
[405822172,1771339844536,-500.0,0.00013698,2]
[405822173,1771339844546,-500.0,0.00013698,2]
[405822174,1771339844557,-522.2154278,0.00013698,2]
[405822175,1771339844567,-500.0,0.00013698,2]
[405822176,1771339844576,-500.0,0.00013698,2]
[405822177,1771339844585,-500.0,0.00013698,2]
[405822178,1771339844595,-500.0,0.00013698,2]
[405822179,1771339844604,-500.0,0.00013698,2]
[405822180,1771339844613,-500.0,0.00013698,2]
[405822181,1771339844623,-500.0,0.00013698,2]
[405822182,1771339844633,-500.0,0.00013698,2]
[405822183,1771339844643,-500.0,0.00013698,2]
[405822184,1771339844652,-184.33,0.00013698,2]
[405822185,1771339844662,-456.05800986,0.00013698,2]
[405822186,1771339844671,-500.0,0.00013698,2]
[405822187,1771339844680,-500.0,0.00013698,2]
[405822188,1771339844691,-500.0,0.00013698,2]
[405822189,1771339844700,-500.0,0.00013698,2]
[405822190,1771339844709,-500.0,0.00013698,2]
[405822191,1771339844718,-500.0,0.00013698,2]
[405822192,1771339844727,-500.0,0.00013698,2]
[405822193,1771339844737,-500.0,0.00013698,2]
[405822194,1771339844746,-500.0,0.00013698,2]
[405822195,1771339844755,-500.0,0.00013698,2]
[405822196,1771339844764,-500.0,0.00013698,2]
[405822197,1771339844773,-500.0,0.00013698,2]
[405822198,1771339844782,-505.24249427,0.00013698,2]
[405822199,1771339844792,-503.77565291,0.00013698,2]
[405822200,1771339844802,-535.55684817,0.00013698,2]
[405822201,1771339844812,-500.0,0.00013698,2]
[405822202,1771339844821,-500.0,0.00013698,2]
[405822203,1771339844835,-500.0,0.00013698,2]
[405822204,1771339844844,-551.5931465,0.00013698,2]
[405822205,1771339844854,-500.0,0.00013698,2]
[405822206,1771339844864,-500.0,0.00013698,2]
[405822207,1771339844876,-500.0,0.00013698,2]
[405822208,1771339844885,-639.90682726,0.00013698,2]
[405822209,1771339844895,-500.0,0.00013698,2]
[405822210,1771339844905,-500.0,0.00013698,2]
[405822211,1771339844916,-500.0,0.00013698,2]
[405822212,1771339844926,-500.0,0.00013698,2]
[405822213,1771339845160,-307.44205355,0.00013698,2]
[405822214,1771339845171,-500.0,0.00013698,2]
[405822215,1771339845181,-500.0,0.00013698,2]
[405822216,1771339845191,-500.0,0.00013698,2]
[405822217,1771339845200,-500.0,0.00013698,2]
[405822218,1771339845210,-500.0,0.00013698,2]
[405822219,1771339845219,-500.0,0.00013698,2]
[405822220,1771339845228,-500.0,0.00013698,2]
[405822221,1771339845239,-500.0,0.00013698,2]
[405822222,1771339845250,-500.0,0.00013698,2]
[405822223,1771339845259,-500.0,0.00013698,2]
[405822224,1771339845268,-500.0,0.00013698,2]
[405822225,1771339845279,-500.0,0.00013698,2]
[405822226,1771339845288,-500.0,0.00013698,2]
[405822227,1771339845301,-500.0,0.00013698,2]
[405822228,1771339845312,-500.0,0.00013698,2]
[405822229,1771339845321,-500.0,0.00013698,2]
[405822230,1771339845330,-349.69131006,0.00013698,2]
[405822231,1771339845340,-500.0,0.00013698,2]
[405822232,1771339845350,-500.0,0.00013698,2]
[405822233,1771339845360,-500.0,0.00013698,2]
[405822234,1771339845369,-500.0,0.00013698,2]
[405822235,1771339845379,-500.0,0.00013698,2]
[405822236,1771339845388,-500.0,0.00013698,2]
[405822237,1771339845398,-500.0,0.00013698,2]
[405822238,1771339845408,-500.0,0.00013698,2]
[405822239,1771339845418,-500.0,0.00013698,2]
[405822240,1771339845428,-500.0,0.00013698,2]
[405822241,1771339845437,-500.0,0.00013698,2]
[405822242,1771339845447,-500.0,0.00013698,2]
[405822243,1771339845457,-500.0,0.00013698,2]
[405822244,1771339845467,-500.0,0.00013698,2]
[405822245,1771339845477,-500.0,0.00013698,2]
[405822246,1771339845486,-500.0,0.00013698,2]
[405822247,1771339845495,-500.0,0.00013698,2]
[405822248,1771339845505,-500.0,0.00013698,2]
[405822249,1771339845515,-511.5660924,0.00013698,2]
[405822250,1771339845525,-500.0,0.00013698,2]
[405822251,1771339845535,-529.40507312,0.00013698,2]
[405822252,1771339845545,-502.4621558,0.00013698,2]
[405822253,1771339845557,-500.0,0.00013698,2]
[405822254,1771339845567,-500.0,0.00013698,2]
[405822255,1771339845576,-500.0,0.00013698,2]
[405822256,1771339845586,-500.0,0.00013698,2]
[405822257,1771339845596,-500.0,0.00013698,2]
[405822258,1771339845605,-500.0,0.00013698,2]
[405822259,1771339845615,-500.0,0.00013698,2]
[405822260,1771339845625,-500.0,0.00013698,2]
[405822261,1771339845634,-500.0,0.00013698,2]
[405822262,1771339845645,-500.0,0.00013698,2]
[405822263,1771339845654,-500.0,0.00013698,2]
[405822264,1771339845664,-500.0,0.00013698,2]
[405822265,1771339845674,-500.0,0.00013698,2]
[405822266,1771339845683,-500.0,0.00013698,2]
[405822267,1771339845693,-500.0,0.00013698,2]
[405822268,1771339845702,-500.0,0.00013698,2]
[405822270,1771339845712,-500.0,0.00013698,2]
[405822272,1771339845722,-500.0,0.00013698,2]
[405822274,1771339845732,-500.0,0.00013698,2]
[405822275,1771339845741,-500.0,0.00013698,2]
[405822276,1771339845752,-712.99,0.00013699,2]
[405822277,1771339845762,-704.93,0.00013699,2]
[405822278,1771339845772,-151.02878078,0.00013699,2]
[405822279,1771339845783,-217.0,0.00013891,3]
[405822280,1771339845793,-500.0,0.00013899,2]
[405822281,1771339845806,-500.0,0.00014,2]
[405822282,1771339845815,-669.72717537,0.00014,2]
[405822283,1771339845829,-1500.0,0.00014067,2]
[405822284,1771339845838,-166.66,0.00014077,2]
[405822285,1771339845849,-704.93,0.00014384,2]
[405822286,1771339845859,-313.19,0.00014519,2]
[405822287,1771339845871,-166.66,0.00014542,2]
[405822288,1771339845881,-151.0,0.00014634,2]
[405822289,1771339845891,-151.0,0.00014634,2]
[405822290,1771339845901,-26010.34672843,0.00014721,2]
[405822291,1771339845910,-6700.00257211,0.0001474,2]
[405822292,1771339845921,-157.37,0.00014806,2]
[405822293,1771339845931,-3896.0,0.00014853,2]
[405822294,1771339845940,-216.81997101,0.00015,5]
[405822295,1771339845950,-250.0,0.00015,2]
[405822296,1771339845960,-166.66,0.00015007,2]
[405822297,1771339845971,-704.93,0.00015068,2]
[405822298,1771339845981,-872.21,0.00015252,2]
[405822299,1771339845990,-306.51422453,0.00015435,2]
[405822300,1771339845999,-166.66,0.00015472,2]
[405822301,1771339846009,-872.21,0.00015526,2]
[405822302,1771339846019,-217.0,0.00015632,3]
[405822303,1771339846028,-484.11558281,0.00015649,2]
[405822304,1771339846038,-776.66,0.00015737,2]
[405822305,1771339846051,-704.93,0.00015753,2]
[405822306,1771339846060,-173.57638878,0.00015757,2]
[405822307,1771339846070,-160.0,0.00015757,2]
[405822308,1771339846079,-767.94,0.000158,2]
[405822309,1771339846088,-26010.34672843,0.00015828,2]
[405822310,1771339846098,-162.0,0.000159,2]
[405822311,1771339846107,-162.0,0.000159,2]
[405822312,1771339846116,-166.66,0.00015936,2]
[405822313,1771339846125,-157.37,0.00015945,2]
[405822314,1771339846135,-1000.0,0.0001595,7]
[405822315,1771339846144,-5000.0,0.0001596,2]
[405822316,1771339846154,-832.04,0.00016011,2]
[405822317,1771339846164,-484.11558281,0.0001604,2]
[405822318,1771339846174,-7910.59,0.00016116,2]
[405822320,1771339846183,-500.0,0.00016134,2]
[405822322,1771339846192,-150.0,0.00016134,2]
[405822323,1771339846201,-500.0,0.00016134,2]
[405822324,1771339846211,-150.0,0.00016134,2]
[405822325,1771339846220,-150.0,0.00016134,2]
[405822326,1771339846230,-150.0,0.00016134,2]
[405822327,1771339846239,-150.0,0.00016134,2]
[405822328,1771339846250,-500.0,0.00016189,2]
[405822329,1771339846259,-150.37957529,0.00016189,2]
[405822330,1771339846268,-500.0,0.00016189,2]
[405822331,1771339846278,-244.28993987,0.00016189,2]
[405822332,1771339846287,-150.0,0.00016189,2]
[405822333,1771339846296,-150.0,0.00016189,2]
[405822334,1771339846309,-150.0,0.00016189,2]
[405822335,1771339846318,-200.0,0.00016199,5]
[405822336,1771339846327,-200.0,0.00016199,5]
[405822337,1771339846337,-500.0,0.00016199,5]
[405822338,1771339846346,-200.0,0.00016199,5]
[405822339,1771339846356,-500.0,0.00016199,5]
[405822340,1771339846365,-200.0,0.00016199,5]
[405822341,1771339846375,-500.0,0.00016199,5]
[405822342,1771339846384,-200.0,0.00016199,5]
[405822343,1771339846393,-226.88409827,0.00016199,5]
[405822345,1771339846402,-200.0,0.00016199,5]
[405822347,1771339846412,-201.77822118,0.00016199,5]
[405822348,1771339846421,-500.0,0.00016199,5]
[405822349,1771339846430,-500.0,0.00016199,5]
[405822350,1771339846440,-500.0,0.00016199,5]
[405822351,1771339846450,-500.0,0.00016199,5]
[405822352,1771339846460,-500.0,0.00016199,5]
[405822353,1771339846470,-500.0,0.00016199,5]
[405822354,1771339846480,-500.0,0.00016199,5]
[405822355,1771339846490,-500.0,0.00016199,5]
[405822356,1771339846499,-500.0,0.00016199,5]
[405822357,1771339846509,-500.0,0.00016199,5]
[405822358,1771339846519,-500.0,0.00016199,5]
[405822359,1771339846528,-500.0,0.00016199,5]
[405822360,1771339846537,-500.0,0.00016199,5]
[405822361,1771339846547,-500.0,0.00016199,5]
[405822362,1771339846560,-500.0,0.00016199,5]
[405822363,1771339846570,-500.0,0.00016199,5]
[405822364,1771339846580,-500.0,0.00016199,5]
[405822365,1771339846590,-500.0,0.00016199,5]
[405822366,1771339846600,-500.0,0.00016199,5]
[405822367,1771339846609,-500.0,0.00016199,5]
[405822368,1771339846619,-500.0,0.00016199,5]
[405822369,1771339846629,-500.0,0.00016199,5]
[405822370,1771339846639,-500.0,0.00016199,5]
[405822371,1771339846648,-500.0,0.00016199,5]
[405822372,1771339846658,-500.0,0.00016199,5]
[405822373,1771339846667,-500.0,0.00016199,5]
[405822374,1771339846677,-500.0,0.00016199,5]
[405822375,1771339846686,-500.0,0.00016199,5]
[405822376,1771339846695,-503.55960548,0.00016199,5]
[405822377,1771339846705,-200.0,0.00016199,5]
[405822378,1771339846714,-151.0,0.00016199,5]
[405822379,1771339846723,-151.0,0.00016199,5]
[405822380,1771339846732,-200.0,0.00016199,5]
[405822381,1771339846742,-151.0,0.00016199,5]
[405822382,1771339846751,-200.0,0.00016199,5]
[405822383,1771339846761,-151.0,0.00016199,5]
[405822384,1771339846770,-200.0,0.00016199,5]
[405822385,1771339846779,-151.0,0.00016199,5]
[405822386,1771339846789,-200.0,0.00016199,5]
[405822387,1771339846800,-151.0,0.00016199,5]
[405822388,1771339846810,-200.0,0.00016199,5]
[405822389,1771339846820,-151.0,0.00016199,5]
[405822390,1771339846832,-200.0,0.00016199,5]
[405822391,1771339846841,-151.0,0.00016199,5]
[405822392,1771339846852,-201.41552809,0.00016199,5]
[405822393,1771339846862,-151.0,0.00016199,5]
[405822394,1771339846873,-151.0,0.00016199,5]
[405822395,1771339846883,-151.0,0.00016199,5]
[405822396,1771339846892,-150.0,0.000162,2]
[405822397,1771339846902,-162.0,0.000162,2]
[405822398,1771339846911,-162.0,0.000162,2]
[405822399,1771339846922,-500.0,0.0001623,2]
[405822400,1771339846931,-5827.2102559,0.00016231,2]
[405822401,1771339846941,-245589.8710239,0.00016231,2]
[405822402,1771339846951,-947.1253165,0.00016236,2]
[405822403,1771339846962,-226.42090261,0.00016236,2]
[405822404,1771339846972,-152.12850518,0.00016244,2]
[405822405,1771339846982,-500.0,0.00016244,2]
[405822406,1771339846992,-150.0,0.00016244,2]
[405822407,1771339847001,-200.36674187,0.00016244,2]
[405822408,1771339847011,-200.18645604,0.00016244,2]
[405822409,1771339847021,-1000.0,0.00016252,2]
[405822410,1771339847030,-1000.0,0.00016252,2]
[405822411,1771339847039,-1000.0,0.00016252,2]
[405822412,1771339847052,-1000.0,0.00016252,2]
[405822413,1771339847062,-1000.0,0.00016252,2]
[405822414,1771339847071,-1000.0,0.00016252,2]
[405822415,1771339847081,-1000.0,0.00016252,2]
[405822416,1771339847091,-1000.0,0.00016252,2]
[405822417,1771339847100,-506.851,0.00016252,2]
[405822418,1771339847110,-506.851,0.00016252,2]
[405822419,1771339847120,-500.0,0.00016298,2]
[405822420,1771339847130,-200.89245722,0.00016298,2]
[405822421,1771339847139,-6700.00257211,0.0001632,2]
[405822422,1771339847149,-200.0,0.0001634,2]
[405822423,1771339847158,-500.0,0.00016353,2]
[405822424,1771339847168,-166.66,0.00016401,2]
[405822425,1771339847177,-500.0,0.00016408,2]
[405822426,1771339847187,-150.0,0.00016425,2]
[405822427,1771339847196,-2466.7,0.00016438,2]
[405822428,1771339847206,-704.93,0.00016438,2]
[405822429,1771339847215,-630.25617345,0.00016463,2]
[405822430,1771339847225,-195.75,0.00016488,2]
[405822431,1771339847234,-150.0,0.0001665,2]
[405822432,1771339847243,-500.0,0.00016684,2]
[405822433,1771339847253,-500.0,0.00016684,2]
[405822434,1771339847263,-500.0,0.00016684,2]
[405822435,1771339847272,-500.0,0.00016684,2]
[405822436,1771339847281,-578.20924308,0.00016684,2]
[405822437,1771339847291,-500.0,0.00016684,2]
[405822438,1771339847302,-500.0,0.00016684,2]
[405822439,1771339847311,-3000.0,0.00016684,2]
[405822440,1771339847320,-500.0,0.00016684,2]
[405822441,1771339847329,-3000.0,0.00016684,2]
[405822442,1771339847339,-500.0,0.00016684,2]
[405822443,1771339847349,-3000.0,0.00016684,2]
[405822444,1771339847358,-500.0,0.00016684,2]
[405822445,1771339847367,-3000.0,0.00016684,2]
[405822446,1771339847377,-1428.38747117,0.00016684,2]
[405822447,1771339847386,-500.0,0.00016684,2]
[405822448,1771339847396,-3000.0,0.00016684,2]
[405822449,1771339847405,-3000.0,0.00016684,2]
[405822450,1771339847414,-3000.0,0.00016684,2]
[405822451,1771339847423,-162.380719,0.00016684,2]
[405822452,1771339847433,-151.0,0.00016684,2]
[405822453,1771339847442,-200.0,0.00016684,2]
[405822454,1771339847452,-3099.28707761,0.00016684,2]
[405822455,1771339847462,-250.0,0.00016684,2]
[405822456,1771339847471,-1000.0,0.00016684,2]
[405822457,1771339847481,-1000.0,0.00016684,2]
[405822458,1771339847490,-500.0,0.00016684,2]
[405822459,1771339847500,-526.36214318,0.00016684,2]
[405822460,1771339847587,-151.12957794,0.00016684,2]
[405822461,1771339847596,-500.0,0.00016684,2]
[405822462,1771339847606,-500.0,0.00016684,2]
[405822463,1771339847615,-500.0,0.00016684,2]
[405822464,1771339847624,-500.0,0.00016684,2]
[405822465,1771339847634,-500.0,0.00016684,2]
[405822466,1771339847643,-250.0,0.00016684,2]
[405822467,1771339847653,-250.0,0.00016684,2]
[405822468,1771339847662,-500.0,0.00016684,2]
[405822469,1771339847671,-250.0,0.00016684,2]
[405822470,1771339847681,-500.0,0.00016684,2]
[405822471,1771339847690,-250.0,0.00016684,2]
[405822472,1771339847699,-500.0,0.00016684,2]
[405822473,1771339847708,-250.0,0.00016684,2]
[405822474,1771339847718,-500.0,0.00016684,2]
[405822475,1771339847728,-250.0,0.00016684,2]
[405822476,1771339847738,-250.0,0.00016684,2]
[405822477,1771339847748,-250.0,0.00016684,2]
[405822478,1771339847758,-250.0,0.00016684,2]
[405822479,1771339847768,-253.83621088,0.00016684,2]
[405822480,1771339847778,-250.0,0.00016684,2]
[405822481,1771339847787,-279.55615727,0.00016684,2]
[405822482,1771339847797,-160.0,0.00016684,2]
[405822483,1771339847809,-151.0,0.00016684,2]
[405822484,1771339847819,-209.40437684,0.00016684,2]
[405822485,1771339847833,-151.0,0.00016684,2]
[405822486,1771339847842,-151.0,0.00016684,2]
[405822487,1771339847852,-151.0,0.00016684,2]
[405822488,1771339847862,-743.50770149,0.00016684,2]
[405822489,1771339847874,-277.35679052,0.00016684,2]
[405822490,1771339847883,-151.0,0.00016684,2]
[405822491,1771339847893,-151.0,0.00016684,2]
[405822492,1771339847905,-174.61919141,0.00016684,2]
[405822493,1771339847914,-151.0,0.00016684,2]
[405822494,1771339847923,-261.90795033,0.00016684,2]
[405822495,1771339847933,-721.12765535,0.00016684,2]